[Event "*** Titled Tuesday Blitz"]
[Site "Chess.com"]
[Date "2020.04.14"]
[Round "8"]
[White "atbenina64"]
[Black "Irishchessman16"]
[Result "1-0"]
[WhiteElo "2518"]
[BlackElo "2372"]
[TimeControl "180+1"]
[EndTime "11:26:16 PDT"]
[Termination "atbenina64 won by resignation"]

1. d4 {[%clk 0:03:00.9]} 1... f5 {[%clk 0:02:58.7]} 2. Nc3 {[%clk 0:03:00]} 2...
Nf6 {[%clk 0:02:56]} 3. Bg5 {[%clk 0:02:59.9]} 3... e6 {[%clk 0:02:56.3]} 4. Nf3
{[%clk 0:02:57.4]} 4... Be7 {[%clk 0:02:56.1]} 5. Bxf6 {[%clk 0:02:57.3]} 5...
Bxf6 {[%clk 0:02:56.1]} 6. e4 {[%clk 0:02:57.6]} 6... fxe4 {[%clk 0:02:53.8]} 7.
Nxe4 {[%clk 0:02:58.5]} 7... O-O {[%clk 0:02:53.8]} 8. Bd3 {[%clk 0:02:59.1]}
8... Nc6 {[%clk 0:02:52.2]} 9. c3 {[%clk 0:02:57.8]} 9... d5 {[%clk 0:02:49.2]}
10. Nxf6+ {[%clk 0:02:57.1]} 10... Qxf6 {[%clk 0:02:50.1]} 11. Qe2 {[%clk
0:02:56.7]} 11... Bd7 {[%clk 0:02:48.3]} 12. O-O {[%clk 0:02:56.8]} 12... Rae8
{[%clk 0:02:48.6]} 13. Rae1 {[%clk 0:02:56.6]} 13... Re7 {[%clk 0:02:42.1]} 14.
Ne5 {[%clk 0:02:56.8]} 14... Nxe5 {[%clk 0:02:40.8]} 15. Qxe5 {[%clk 0:02:57.7]}
15... Qxe5 {[%clk 0:02:39.1]} 16. Rxe5 {[%clk 0:02:58.6]} 16... Be8 {[%clk
0:02:36.6]} 17. Rfe1 {[%clk 0:02:57.5]} 17... Kf7 {[%clk 0:02:32.4]} 18. f4
{[%clk 0:02:48]} 18... g6 {[%clk 0:02:32.4]} 19. g4 {[%clk 0:02:47.2]} 19... Bd7
{[%clk 0:02:31.4]} 20. Kg2 {[%clk 0:02:40.3]} 20... Ke8 {[%clk 0:02:31.5]} 21.
Kg3 {[%clk 0:02:40.7]} 21... Kd8 {[%clk 0:02:30.7]} 22. h4 {[%clk 0:02:39.6]}
22... Ref7 {[%clk 0:02:30.7]} 23. Rf1 {[%clk 0:02:37]} 23... Ke7 {[%clk
0:02:30.3]} 24. b4 {[%clk 0:02:35.9]} 24... Kd6 {[%clk 0:02:30.1]} 25. h5 {[%clk
0:02:34.2]} 25... gxh5 {[%clk 0:02:29.5]} 26. Rxh5 {[%clk 0:02:35.1]} 26... b6
{[%clk 0:02:21.4]} 27. Rxh7 {[%clk 0:02:31.8]} 27... c5 {[%clk 0:02:21.6]} 28.
bxc5+ {[%clk 0:02:17.9]} 28... bxc5 {[%clk 0:02:20.9]} 29. Rxf7 {[%clk
0:02:18.5]} 29... Rxf7 {[%clk 0:02:20.4]} 30. g5 {[%clk 0:02:15.5]} 30... Rf8
{[%clk 0:02:19.3]} 31. g6 {[%clk 0:02:15.2]} 31... Ke7 {[%clk 0:02:16.5]} 32.
Rh1 {[%clk 0:02:09.2]} 32... Kf6 {[%clk 0:02:09.3]} 33. Rh7 {[%clk 0:02:08.4]}
33... Be8 {[%clk 0:02:09.2]} 34. dxc5 {[%clk 0:01:56.5]} 34... Bxg6 {[%clk
0:02:08.3]} 35. Rh6 {[%clk 0:01:56.3]} 35... Rg8 {[%clk 0:01:59.6]} 36. c6
{[%clk 0:01:54.8]} 1-0

[Event "*** Titled Tuesday Blitz"]
[Site "Chess.com"]
[Date "2020.04.14"]
[Round "8"]
[White "JiaHaoxiang"]
[Black "lhavas"]
[Result "1-0"]
[WhiteElo "2602"]
[BlackElo "2411"]
[TimeControl "180+1"]
[EndTime "11:26:18 PDT"]
[Termination "JiaHaoxiang won by resignation"]

1. d4 {[%clk 0:03:00.9]} 1... Nf6 {[%clk 0:02:33.7]} 2. c4 {[%clk 0:03:00.5]}
2... e5 {[%clk 0:02:32.5]} 3. dxe5 {[%clk 0:02:59.7]} 3... Ne4 {[%clk
0:02:31.2]} 4. Nf3 {[%clk 0:02:58.9]} 4... d6 {[%clk 0:02:30.7]} 5. Nbd2 {[%clk
0:02:50.8]} 5... Bf5 {[%clk 0:02:29.1]} 6. Nxe4 {[%clk 0:02:44]} 6... Bxe4
{[%clk 0:02:28.8]} 7. e3 {[%clk 0:02:44.3]} 7... Nc6 {[%clk 0:02:28.1]} 8. Be2
{[%clk 0:02:34]} 8... dxe5 {[%clk 0:02:27.8]} 9. O-O {[%clk 0:02:32.3]} 9... f6
{[%clk 0:02:19.4]} 10. Qa4 {[%clk 0:02:30.2]} 10... Qe7 {[%clk 0:02:04.8]} 11.
Bd2 {[%clk 0:02:26.8]} 11... O-O-O {[%clk 0:02:03.6]} 12. Bc3 {[%clk 0:02:22.3]}
12... g5 {[%clk 0:02:02.1]} 13. b4 {[%clk 0:02:21]} 13... Bd3 {[%clk 0:01:45]}
14. Bxd3 {[%clk 0:02:12.5]} 14... Rxd3 {[%clk 0:01:44.8]} 15. Rfc1 {[%clk
0:02:02.7]} 15... Kb8 {[%clk 0:01:37.4]} 16. c5 {[%clk 0:02:00.8]} 16... g4
{[%clk 0:01:33]} 17. Ne1 {[%clk 0:02:00.7]} 17... Rd5 {[%clk 0:01:25.2]} 18. b5
{[%clk 0:02:00.2]} 18... Nd8 {[%clk 0:01:23.5]} 19. b6 {[%clk 0:01:48.6]} 19...
h5 {[%clk 0:01:21.9]} 20. Qxa7+ {[%clk 0:01:44.3]} 1-0

[Event "*** Titled Tuesday Blitz"]
[Site "Chess.com"]
[Date "2020.04.14"]
[Round "8"]
[White "Zajdanek"]
[Black "Perecke"]
[Result "0-1"]
[WhiteElo "2339"]
[BlackElo "2211"]
[TimeControl "180+1"]
[EndTime "11:26:30 PDT"]
[Termination "Perecke won by resignation"]

1. f4 {[%clk 0:03:00.8]} 1... d5 {[%clk 0:02:57.5]} 2. Nf3 {[%clk 0:03:00.9]}
2... Nc6 {[%clk 0:02:55.8]} 3. b3 {[%clk 0:03:01.1]} 3... Nf6 {[%clk 0:02:53.8]}
4. Bb2 {[%clk 0:03:01.3]} 4... g6 {[%clk 0:02:54.2]} 5. e3 {[%clk 0:03:01.9]}
5... Bg7 {[%clk 0:02:54.4]} 6. Bb5 {[%clk 0:03:01.8]} 6... O-O {[%clk
0:02:54.2]} 7. Bxc6 {[%clk 0:03:02.1]} 7... bxc6 {[%clk 0:02:55.1]} 8. Ne5
{[%clk 0:03:02.4]} 8... Bb7 {[%clk 0:02:52.5]} 9. d3 {[%clk 0:03:02.9]} 9... Nd7
{[%clk 0:02:50.4]} 10. Nd2 {[%clk 0:03:02.6]} 10... Nxe5 {[%clk 0:02:44.5]} 11.
fxe5 {[%clk 0:03:02.8]} 11... c5 {[%clk 0:02:44.1]} 12. O-O {[%clk 0:03:00.6]}
12... f6 {[%clk 0:02:40.1]} 13. exf6 {[%clk 0:02:59.3]} 13... Bxf6 {[%clk
0:02:33.6]} 14. Bxf6 {[%clk 0:02:56.6]} 14... exf6 {[%clk 0:02:33.6]} 15. Qg4
{[%clk 0:02:55.8]} 15... f5 {[%clk 0:02:31.5]} 16. Qg3 {[%clk 0:02:54.8]} 16...
Rc8 {[%clk 0:02:22.5]} 17. Rf4 {[%clk 0:02:48.4]} 17... Qf6 {[%clk 0:02:21.8]}
18. Raf1 {[%clk 0:02:47.1]} 18... Qc3 {[%clk 0:02:19.3]} 19. Nf3 {[%clk
0:02:35.6]} 19... Qxc2 {[%clk 0:02:14.2]} 20. Ne5 {[%clk 0:02:35.8]} 20... Qc3
{[%clk 0:01:29.3]} 21. Rh4 {[%clk 0:02:35]} 21... Rf6 {[%clk 0:00:57.5]} 22. Ng4
{[%clk 0:02:18.8]} 22... fxg4 {[%clk 0:00:54.3]} 0-1

[Event "*** Titled Tuesday Blitz"]
[Site "Chess.com"]
[Date "2020.04.14"]
[Round "8"]
[White "AliKa2810"]
[Black "ljuks68"]
[Result "1-0"]
[WhiteElo "2601"]
[BlackElo "2344"]
[TimeControl "180+1"]
[EndTime "11:26:34 PDT"]
[Termination "AliKa2810 won by resignation"]

1. d4 {[%clk 0:03:00.9]} 1... d5 {[%clk 0:02:49.1]} 2. c4 {[%clk 0:02:59.9]}
2... c6 {[%clk 0:02:45.4]} 3. cxd5 {[%clk 0:02:59.5]} 3... cxd5 {[%clk
0:02:45.1]} 4. Bg5 {[%clk 0:03:00.1]} 4... h6 {[%clk 0:02:42.4]} 5. Bh4 {[%clk
0:03:00.2]} 5... g5 {[%clk 0:02:40.6]} 6. Bg3 {[%clk 0:02:59.9]} 6... Nf6 {[%clk
0:02:38]} 7. Nc3 {[%clk 0:03:00.1]} 7... a6 {[%clk 0:02:35.8]} 8. e3 {[%clk
0:02:56.7]} 8... Nc6 {[%clk 0:02:33.6]} 9. Bd3 {[%clk 0:02:57.2]} 9... Bg7
{[%clk 0:02:25]} 10. Nf3 {[%clk 0:02:57.7]} 10... O-O {[%clk 0:02:24.5]} 11. h4
{[%clk 0:02:55.8]} 11... g4 {[%clk 0:02:23.3]} 12. Ne5 {[%clk 0:02:55.7]} 12...
h5 {[%clk 0:02:22.9]} 13. a3 {[%clk 0:02:52.8]} 13... e6 {[%clk 0:02:12.9]} 14.
Nxc6 {[%clk 0:02:44.1]} 14... bxc6 {[%clk 0:02:12.5]} 15. Be5 {[%clk 0:02:44.8]}
15... a5 {[%clk 0:02:05.4]} 16. Ne2 {[%clk 0:02:41.2]} 16... Nd7 {[%clk
0:01:54.7]} 17. Bxg7 {[%clk 0:02:39.4]} 17... Kxg7 {[%clk 0:01:54.3]} 18. Ng3
{[%clk 0:02:38.4]} 18... Nf6 {[%clk 0:01:53.8]} 19. Qc1 {[%clk 0:02:25.2]} 19...
Bd7 {[%clk 0:01:47.7]} 20. e4 {[%clk 0:02:24.3]} 20... dxe4 {[%clk 0:01:35.6]}
21. Qg5+ {[%clk 0:02:23.3]} 21... Kh8 {[%clk 0:01:31.5]} 22. Qh6+ {[%clk
0:02:13]} 22... Kg8 {[%clk 0:01:30.6]} 23. Bxe4 {[%clk 0:02:06.4]} 23... Re8
{[%clk 0:01:16.5]} 24. Nxh5 {[%clk 0:01:56.6]} 24... Nxh5 {[%clk 0:01:13.7]} 25.
Bh7+ {[%clk 0:01:56.2]} 25... Kh8 {[%clk 0:01:12.7]} 26. Bg6+ {[%clk 0:01:56.4]}
26... Kg8 {[%clk 0:01:12.8]} 27. Qh7+ {[%clk 0:01:56.7]} 1-0

[Event "*** Titled Tuesday Blitz"]
[Site "Chess.com"]
[Date "2020.04.14"]
[Round "8"]
[White "2nd_life"]
[Black "chiwii"]
[Result "1-0"]
[WhiteElo "2419"]
[BlackElo "2236"]
[TimeControl "180+1"]
[EndTime "11:26:35 PDT"]
[Termination "2nd_life won by resignation"]

1. e4 {[%clk 0:03:00.9]} 1... c5 {[%clk 0:02:58.5]} 2. Nf3 {[%clk 0:03:00.9]}
2... e6 {[%clk 0:02:58.3]} 3. c3 {[%clk 0:03:00.7]} 3... d5 {[%clk 0:02:58.2]}
4. exd5 {[%clk 0:02:59.5]} 4... exd5 {[%clk 0:02:59.1]} 5. d4 {[%clk 0:02:59.6]}
5... Nf6 {[%clk 0:02:58.8]} 6. Be3 {[%clk 0:02:59.2]} 6... cxd4 {[%clk
0:02:57.8]} 7. Bxd4 {[%clk 0:02:59]} 7... Nc6 {[%clk 0:02:58.1]} 8. Bxf6 {[%clk
0:02:57.7]} 8... Qxf6 {[%clk 0:02:58.7]} 9. Qxd5 {[%clk 0:02:57.9]} 9... Be6
{[%clk 0:02:58.7]} 10. Qg5 {[%clk 0:02:57.7]} 10... Be7 {[%clk 0:02:52.4]} 11.
Qxf6 {[%clk 0:02:56.2]} 11... Bxf6 {[%clk 0:02:53.3]} 12. Nbd2 {[%clk
0:02:56.3]} 12... O-O {[%clk 0:02:53.5]} 13. Bc4 {[%clk 0:02:54.2]} 13... Rfe8
{[%clk 0:02:52.5]} 14. O-O-O {[%clk 0:02:47.8]} 14... Rac8 {[%clk 0:02:50.4]}
15. Bxe6 {[%clk 0:02:46.4]} 15... Rxe6 {[%clk 0:02:51.3]} 16. Rhe1 {[%clk
0:02:45.7]} 16... Rce8 {[%clk 0:02:50.4]} 17. Rxe6 {[%clk 0:02:44.9]} 17... Rxe6
{[%clk 0:02:51.3]} 18. Re1 {[%clk 0:02:44.9]} 18... Rxe1+ {[%clk 0:02:46]} 19.
Nxe1 {[%clk 0:02:44.8]} 19... Ne5 {[%clk 0:02:45.8]} 20. h3 {[%clk 0:02:36.1]}
20... Kf8 {[%clk 0:02:37.4]} 21. Kc2 {[%clk 0:02:35.3]} 21... Ke7 {[%clk
0:02:37.5]} 22. Ne4 {[%clk 0:02:32.4]} 22... Ng6 {[%clk 0:02:26.8]} 23. Nxf6
{[%clk 0:02:29.3]} 23... Kxf6 {[%clk 0:02:27.7]} 24. g3 {[%clk 0:02:28.8]} 24...
Ke5 {[%clk 0:02:27.2]} 25. Kd3 {[%clk 0:02:27.5]} 25... Kd5 {[%clk 0:02:27.5]}
26. f4 {[%clk 0:02:19.1]} 26... f5 {[%clk 0:02:26.1]} 27. Nc2 {[%clk 0:02:18.3]}
27... Ke6 {[%clk 0:02:24.8]} 28. Nd4+ {[%clk 0:02:16.6]} 28... Kf6 {[%clk
0:02:24]} 29. Kc4 {[%clk 0:02:15.6]} 29... b6 {[%clk 0:02:23.1]} 30. Kd5 {[%clk
0:02:15.1]} 30... Ne7+ {[%clk 0:02:23.1]} 31. Kd6 {[%clk 0:02:14]} 31... h6
{[%clk 0:02:22.3]} 32. h4 {[%clk 0:02:13.1]} 32... a6 {[%clk 0:02:12.2]} 33. h5
{[%clk 0:02:11.1]} 33... b5 {[%clk 0:02:05.1]} 34. b3 {[%clk 0:02:10.4]} 34...
g5 {[%clk 0:02:05.3]} 35. hxg6 {[%clk 0:02:09.9]} 35... Nxg6 {[%clk 0:02:05.9]}
36. c4 {[%clk 0:02:09.1]} 36... h5 {[%clk 0:02:06.2]} 37. cxb5 {[%clk
0:02:08.2]} 37... axb5 {[%clk 0:02:07.1]} 38. Nxb5 {[%clk 0:02:07.6]} 38... h4
{[%clk 0:02:07.7]} 39. gxh4 {[%clk 0:02:07.8]} 39... Nxf4 {[%clk 0:02:08.1]} 40.
Nd4 {[%clk 0:02:07.2]} 40... Nd3 {[%clk 0:02:07.9]} 41. a3 {[%clk 0:02:00.8]}
41... f4 {[%clk 0:02:08.2]} 42. b4 {[%clk 0:02:00.3]} 42... Ne5 {[%clk
0:02:08.3]} 43. b5 {[%clk 0:01:59.5]} 43... Nc4+ {[%clk 0:02:07.8]} 44. Kc5
{[%clk 0:01:56.8]} 44... Nxa3 {[%clk 0:02:08.1]} 45. b6 {[%clk 0:01:56.5]} 45...
Nb1 {[%clk 0:02:01.6]} 46. b7 {[%clk 0:01:55.5]} 46... Nd2 {[%clk 0:02:02.5]}
47. b8=Q {[%clk 0:01:55]} 47... Ne4+ {[%clk 0:02:03.4]} 48. Kc6 {[%clk 0:01:55]}
48... f3 {[%clk 0:02:03.3]} 49. Qf4+ {[%clk 0:01:54.5]} 1-0

[Event "*** Titled Tuesday Blitz"]
[Site "Chess.com"]
[Date "2020.04.14"]
[Round "8"]
[White "KarpovVadim"]
[Black "chenxiaoyuer"]
[Result "1/2-1/2"]
[WhiteElo "2409"]
[BlackElo "2129"]
[TimeControl "180+1"]
[EndTime "11:26:42 PDT"]
[Termination "Game drawn by agreement"]

1. Nf3 {[%clk 0:03:00.9]} 1... Nf6 {[%clk 0:02:59.8]} 2. c4 {[%clk 0:03:01.4]}
2... g6 {[%clk 0:02:59.6]} 3. Nc3 {[%clk 0:03:01.4]} 3... Bg7 {[%clk 0:02:59.7]}
4. e4 {[%clk 0:03:01.4]} 4... d6 {[%clk 0:02:59.1]} 5. d4 {[%clk 0:03:01.2]}
5... O-O {[%clk 0:02:58.5]} 6. Be2 {[%clk 0:03:01]} 6... e5 {[%clk 0:02:56.7]}
7. O-O {[%clk 0:03:00.9]} 7... Nc6 {[%clk 0:02:55.7]} 8. dxe5 {[%clk 0:03:00.1]}
8... dxe5 {[%clk 0:02:53.3]} 9. Bg5 {[%clk 0:02:59.1]} 9... Qxd1 {[%clk
0:02:47.2]} 10. Rfxd1 {[%clk 0:02:57.5]} 10... Bg4 {[%clk 0:02:38.3]} 11. Nd5
{[%clk 0:02:15.2]} 11... Nxd5 {[%clk 0:02:31.5]} 12. cxd5 {[%clk 0:02:13.8]}
12... Bxf3 {[%clk 0:02:31]} 13. Bxf3 {[%clk 0:02:13.5]} 13... Nd4 {[%clk
0:02:30.3]} 14. Rac1 {[%clk 0:02:12.2]} 14... c6 {[%clk 0:02:24]} 15. dxc6
{[%clk 0:02:06.6]} 15... bxc6 {[%clk 0:02:18.1]} 16. Be3 {[%clk 0:02:05.4]}
16... Rab8 {[%clk 0:02:14.6]} 17. b3 {[%clk 0:02:04.6]} 17... Rb6 {[%clk
0:02:13.7]} 18. Bxd4 {[%clk 0:02:02.6]} 18... exd4 {[%clk 0:02:13.3]} 19. e5
{[%clk 0:02:02.5]} 19... Bxe5 {[%clk 0:02:09.6]} 20. Bxc6 {[%clk 0:02:02.1]}
20... Rc8 {[%clk 0:02:03.9]} 21. Be4 {[%clk 0:01:59.7]} 21... Rc3 {[%clk
0:02:02.9]} 22. g3 {[%clk 0:01:47.9]} 22... Ra6 {[%clk 0:01:51.9]} 23. Bb1
{[%clk 0:01:40.4]} 23... Rac6 {[%clk 0:01:46.9]} 24. Rxc3 {[%clk 0:01:39.6]}
24... dxc3 {[%clk 0:01:36.7]} 25. Bc2 {[%clk 0:01:38.9]} 25... Ra6 {[%clk
0:01:33.9]} 26. a4 {[%clk 0:01:36.2]} 26... Rd6 {[%clk 0:01:32.7]} 27. Rxd6
{[%clk 0:01:35.2]} 27... Bxd6 {[%clk 0:01:32.4]} 28. Kf1 {[%clk 0:01:35.4]}
28... a5 {[%clk 0:01:32]} 29. Ke2 {[%clk 0:01:35]} 29... Bb4 {[%clk 0:01:31.4]}
1/2-1/2

[Event "*** Titled Tuesday Blitz"]
[Site "Chess.com"]
[Date "2020.04.14"]
[Round "8"]
[White "NDePinEsPeRG"]
[Black "827883"]
[Result "1-0"]
[WhiteElo "2892"]
[BlackElo "2094"]
[TimeControl "180+1"]
[EndTime "11:26:50 PDT"]
[Termination "NDePinEsPeRG won by resignation"]

1. e4 {[%clk 0:02:57.4]} 1... e5 {[%clk 0:02:59.9]} 2. Nf3 {[%clk 0:02:57]} 2...
Nc6 {[%clk 0:03:00.5]} 3. Bb5 {[%clk 0:02:57.2]} 3... a6 {[%clk 0:03:01.2]} 4.
Ba4 {[%clk 0:02:56.9]} 4... Nf6 {[%clk 0:03:02.1]} 5. O-O {[%clk 0:02:57.1]}
5... Be7 {[%clk 0:03:02.6]} 6. d3 {[%clk 0:02:57.2]} 6... b5 {[%clk 0:03:02.8]}
7. Bb3 {[%clk 0:02:57.3]} 7... O-O {[%clk 0:03:03.5]} 8. a4 {[%clk 0:02:53.8]}
8... b4 {[%clk 0:03:03.2]} 9. Nbd2 {[%clk 0:02:50.9]} 9... Bb7 {[%clk
0:03:02.8]} 10. Nc4 {[%clk 0:02:50.5]} 10... d6 {[%clk 0:02:55.5]} 11. Be3
{[%clk 0:02:49.4]} 11... a5 {[%clk 0:02:49.1]} 12. h3 {[%clk 0:02:47.2]} 12...
h6 {[%clk 0:02:47.7]} 13. Qe2 {[%clk 0:02:41.2]} 13... Re8 {[%clk 0:02:47.1]}
14. Rae1 {[%clk 0:02:39.8]} 14... Bf8 {[%clk 0:02:46.7]} 15. Nfd2 {[%clk
0:02:35.9]} 15... d5 {[%clk 0:02:45.2]} 16. exd5 {[%clk 0:02:35.3]} 16... Nxd5
{[%clk 0:02:45.2]} 17. Qg4 {[%clk 0:02:22.1]} 17... Qf6 {[%clk 0:02:28]} 18. Ne4
{[%clk 0:02:20]} 18... Qe6 {[%clk 0:02:20.9]} 19. Qxe6 {[%clk 0:02:14.1]} 19...
Rxe6 {[%clk 0:02:20.9]} 20. Bc5 {[%clk 0:02:12.9]} 20... Bc8 {[%clk 0:01:58.7]}
21. Ncd2 {[%clk 0:02:03.9]} 21... Nf4 {[%clk 0:01:41.9]} 22. Bxe6 {[%clk
0:02:01.2]} 22... Nxe6 {[%clk 0:01:42.1]} 23. Bxf8 {[%clk 0:02:00]} 23... Kxf8
{[%clk 0:01:42.3]} 24. Nb3 {[%clk 0:01:55.2]} 24... Ned4 {[%clk 0:01:31]} 25.
Nxd4 {[%clk 0:01:54.5]} 25... Nxd4 {[%clk 0:01:31.1]} 26. c3 {[%clk 0:01:54.5]}
26... Nc6 {[%clk 0:01:27.3]} 27. f4 {[%clk 0:01:52.8]} 27... Rb8 {[%clk
0:01:20.1]} 28. fxe5 {[%clk 0:01:51.5]} 28... Nxe5 {[%clk 0:01:20.2]} 29. Nc5
{[%clk 0:01:50.8]} 29... Nc6 {[%clk 0:01:13.8]} 30. d4 {[%clk 0:01:50.3]} 30...
Be6 {[%clk 0:01:12.5]} 31. Rxe6 {[%clk 0:01:48.4]} 1-0

[Event "*** Titled Tuesday Blitz"]
[Site "Chess.com"]
[Date "2020.04.14"]
[Round "8"]
[White "BojanR1"]
[Black "Klavdia_Nik"]
[Result "0-1"]
[WhiteElo "2320"]
[BlackElo "2169"]
[TimeControl "180+1"]
[EndTime "11:27:05 PDT"]
[Termination "Klavdia_Nik won by resignation"]

1. d4 {[%clk 0:03:00.6]} 1... Nf6 {[%clk 0:02:58.6]} 2. c4 {[%clk 0:02:59.6]}
2... c5 {[%clk 0:02:58.7]} 3. Nf3 {[%clk 0:02:56.6]} 3... b6 {[%clk 0:02:56.5]}
4. Nc3 {[%clk 0:02:56.1]} 4... Bb7 {[%clk 0:02:56.9]} 5. d5 {[%clk 0:02:56.4]}
5... d6 {[%clk 0:02:57.1]} 6. e4 {[%clk 0:02:56.5]} 6... g6 {[%clk 0:02:57.6]}
7. Be2 {[%clk 0:02:49.9]} 7... Bg7 {[%clk 0:02:57.8]} 8. O-O {[%clk 0:02:50]}
8... O-O {[%clk 0:02:58.3]} 9. a4 {[%clk 0:02:49.7]} 9... Na6 {[%clk 0:02:55.2]}
10. a5 {[%clk 0:02:48.7]} 10... Nb4 {[%clk 0:02:54.7]} 11. Re1 {[%clk
0:02:42.9]} 11... a6 {[%clk 0:02:52.6]} 12. Bf1 {[%clk 0:02:37.1]} 12... b5
{[%clk 0:02:46.8]} 13. cxb5 {[%clk 0:02:35]} 13... axb5 {[%clk 0:02:47]} 14.
Bxb5 {[%clk 0:02:28.3]} 14... Rxa5 {[%clk 0:02:46.2]} 15. Rxa5 {[%clk
0:02:27.6]} 15... Qxa5 {[%clk 0:02:46.4]} 16. h3 {[%clk 0:02:24.1]} 16... Ba6
{[%clk 0:02:39.1]} 17. Bxa6 {[%clk 0:02:22.3]} 17... Qxa6 {[%clk 0:02:36.2]} 18.
e5 {[%clk 0:02:22.4]} 18... Ne8 {[%clk 0:02:29]} 19. e6 {[%clk 0:02:21]} 19...
f6 {[%clk 0:02:25.7]} 20. Qe2 {[%clk 0:02:11.9]} 20... Qxe2 {[%clk 0:02:21.2]}
21. Rxe2 {[%clk 0:02:10.4]} 21... Nc7 {[%clk 0:02:21.7]} 22. Rd2 {[%clk
0:02:04.8]} 22... Bh6 {[%clk 0:02:21.9]} 23. Rd1 {[%clk 0:02:03.8]} 23... Bxc1
{[%clk 0:02:22.2]} 24. Rxc1 {[%clk 0:02:03.7]} 24... Ncxd5 {[%clk 0:02:22.2]}
25. Nxd5 {[%clk 0:02:02.7]} 25... Nxd5 {[%clk 0:02:22.6]} 26. Ra1 {[%clk
0:02:03.1]} 26... Rb8 {[%clk 0:02:14]} 27. Ra2 {[%clk 0:02:00.1]} 27... Nf4
{[%clk 0:02:08.2]} 28. Ra7 {[%clk 0:01:57.1]} 28... Kf8 {[%clk 0:02:05.8]} 29.
b3 {[%clk 0:01:48.7]} 29... Nxe6 {[%clk 0:01:59.5]} 30. Nd2 {[%clk 0:01:48.1]}
30... Nd4 {[%clk 0:01:59.6]} 31. Nc4 {[%clk 0:01:46.5]} 31... Nxb3 {[%clk
0:01:51.6]} 32. h4 {[%clk 0:01:42.5]} 32... h5 {[%clk 0:01:50.8]} 33. Kh2 {[%clk
0:01:42]} 33... Nd4 {[%clk 0:01:47.4]} 34. Na5 {[%clk 0:01:41.1]} 34... Rb2
{[%clk 0:01:36]} 35. f4 {[%clk 0:01:39.1]} 35... Ra2 {[%clk 0:01:27]} 0-1

[Event "*** Titled Tuesday Blitz"]
[Site "Chess.com"]
[Date "2020.04.14"]
[Round "8"]
[White "gmkomarov"]
[Black "LizaSolovyova"]
[Result "1/2-1/2"]
[WhiteElo "2414"]
[BlackElo "2565"]
[TimeControl "180+1"]
[EndTime "11:27:14 PDT"]
[Termination "Game drawn by agreement"]

1. d4 {[%clk 0:03:00.9]} 1... f5 {[%clk 0:02:59]} 2. g3 {[%clk 0:02:59.4]} 2...
Nf6 {[%clk 0:02:59.2]} 3. Bg2 {[%clk 0:02:59.3]} 3... e6 {[%clk 0:03:00.1]} 4.
c4 {[%clk 0:02:57.9]} 4... Be7 {[%clk 0:03:01]} 5. Nf3 {[%clk 0:02:53.8]} 5...
O-O {[%clk 0:03:01.9]} 6. O-O {[%clk 0:02:53.8]} 6... d6 {[%clk 0:03:01.6]} 7.
b3 {[%clk 0:02:53.1]} 7... Qe8 {[%clk 0:03:01.6]} 8. Bb2 {[%clk 0:02:52.4]} 8...
Ne4 {[%clk 0:03:01.7]} 9. Nfd2 {[%clk 0:02:50.9]} 9... d5 {[%clk 0:02:58.9]} 10.
Nc3 {[%clk 0:02:48.3]} 10... c6 {[%clk 0:02:58.4]} 11. f3 {[%clk 0:02:46.6]}
11... Nxc3 {[%clk 0:02:55.9]} 12. Bxc3 {[%clk 0:02:45.8]} 12... Qg6 {[%clk
0:02:43.1]} 13. e4 {[%clk 0:02:43.5]} 13... f4 {[%clk 0:02:42.1]} 14. g4 {[%clk
0:02:36.5]} 14... h5 {[%clk 0:02:35.5]} 15. Qe2 {[%clk 0:02:31]} 15... Rf7
{[%clk 0:02:18.5]} 16. Kh1 {[%clk 0:02:17.3]} 16... Nd7 {[%clk 0:02:10.8]} 17.
Rg1 {[%clk 0:02:11.4]} 17... Nf6 {[%clk 0:02:01.6]} 18. Bh3 {[%clk 0:02:10]}
18... hxg4 {[%clk 0:01:59.8]} 19. Bxg4 {[%clk 0:02:08.4]} 19... Qh6 {[%clk
0:01:46]} 20. e5 {[%clk 0:02:05.6]} 20... Nh7 {[%clk 0:01:38.2]} 21. c5 {[%clk
0:01:48]} 21... Bd7 {[%clk 0:01:37.2]} 22. b4 {[%clk 0:01:47.7]} 22... Nf8
{[%clk 0:01:25.7]} 23. Nb3 {[%clk 0:01:46.5]} 23... Ng6 {[%clk 0:01:19]} 24. Na5
{[%clk 0:01:45.3]} 24... Rb8 {[%clk 0:01:18.6]} 25. Rab1 {[%clk 0:01:41.4]}
25... Nh4 {[%clk 0:01:16.6]} 26. a4 {[%clk 0:01:39.4]} 26... a6 {[%clk
0:01:14.3]} 27. Bd2 {[%clk 0:01:34]} 27... g5 {[%clk 0:01:03.7]} 1/2-1/2

[Event "*** Titled Tuesday Blitz"]
[Site "Chess.com"]
[Date "2020.04.14"]
[Round "8"]
[White "NFChess13"]
[Black "ketster"]
[Result "0-1"]
[WhiteElo "2430"]
[BlackElo "2296"]
[TimeControl "180+1"]
[EndTime "11:27:14 PDT"]
[Termination "ketster won by resignation"]

1. e4 {[%clk 0:03:00.9]} 1... e5 {[%clk 0:02:52.3]} 2. Nf3 {[%clk 0:03:01.3]}
2... Nc6 {[%clk 0:02:49.9]} 3. Bb5 {[%clk 0:03:01.4]} 3... a6 {[%clk 0:02:48.6]}
4. Bxc6 {[%clk 0:03:00.3]} 4... dxc6 {[%clk 0:02:48.2]} 5. Nc3 {[%clk
0:03:00.3]} 5... Bd6 {[%clk 0:02:35.4]} 6. d4 {[%clk 0:02:59.8]} 6... exd4
{[%clk 0:02:30.1]} 7. Qxd4 {[%clk 0:03:00.7]} 7... f6 {[%clk 0:02:29.9]} 8. Ne2
{[%clk 0:03:00.8]} 8... Bg4 {[%clk 0:02:27.1]} 9. Qd3 {[%clk 0:02:41.5]} 9...
Ne7 {[%clk 0:02:24.2]} 10. h3 {[%clk 0:02:41.5]} 10... Bh5 {[%clk 0:02:23.4]}
11. Bf4 {[%clk 0:02:41]} 11... Bxf4 {[%clk 0:02:16]} 12. Nxf4 {[%clk 0:02:23.7]}
12... Qxd3 {[%clk 0:02:14.9]} 13. Nxd3 {[%clk 0:02:21.3]} 13... Bxf3 {[%clk
0:02:15.3]} 14. gxf3 {[%clk 0:02:22.2]} 14... b6 {[%clk 0:02:12.8]} 15. a4
{[%clk 0:02:18.9]} 15... a5 {[%clk 0:02:11.2]} 16. Ke2 {[%clk 0:02:17.7]} 16...
c5 {[%clk 0:02:08.9]} 17. Ke3 {[%clk 0:02:16.6]} 17... Kf7 {[%clk 0:02:08.2]}
18. Rhg1 {[%clk 0:02:13.2]} 18... Rhe8 {[%clk 0:02:06.8]} 19. b3 {[%clk
0:02:09.6]} 19... Nf5+ {[%clk 0:02:03.8]} 20. Kd2 {[%clk 0:02:04.9]} 20... Nd4
{[%clk 0:02:03.4]} 21. Rg3 {[%clk 0:02:02.8]} 21... Rad8 {[%clk 0:02:00.2]} 22.
Rag1 {[%clk 0:01:59.6]} 22... g6 {[%clk 0:01:49.3]} 23. h4 {[%clk 0:01:59.9]}
23... Rd7 {[%clk 0:01:42.4]} 24. Re1 {[%clk 0:01:55.9]} 24... Red8 {[%clk
0:01:37.6]} 25. Kc3 {[%clk 0:01:54.5]} 25... Nxc2 {[%clk 0:01:34.3]} 26. Kxc2
{[%clk 0:01:53.7]} 26... Rxd3 {[%clk 0:01:34]} 27. Re2 {[%clk 0:01:51.2]} 27...
R3d4 {[%clk 0:01:27.3]} 28. f4 {[%clk 0:01:50.5]} 28... c4 {[%clk 0:01:27.2]}
29. Rc3 {[%clk 0:01:42.8]} 29... cxb3+ {[%clk 0:01:26.4]} 30. Kxb3 {[%clk
0:01:43.7]} 30... Rb4+ {[%clk 0:01:26]} 31. Ka3 {[%clk 0:01:42.1]} 31... c5
{[%clk 0:01:26]} 32. f3 {[%clk 0:01:42]} 32... Rdd4 {[%clk 0:01:21.5]} 33. e5
{[%clk 0:01:41.9]} 33... Rxa4+ {[%clk 0:01:20.1]} 34. Kb3 {[%clk 0:01:41.7]}
34... Rdb4+ {[%clk 0:01:18.9]} 35. Kc2 {[%clk 0:01:42.2]} 35... Ra2+ {[%clk
0:01:18.7]} 36. Kd3 {[%clk 0:01:42.8]} 36... Rd4+ {[%clk 0:01:18.1]} 37. Ke3
{[%clk 0:01:41.9]} 37... Rxe2+ {[%clk 0:01:16.8]} 38. Kxe2 {[%clk 0:01:42.8]}
38... Rxf4 {[%clk 0:01:16.4]} 0-1